fUSD/lending_fUSD_20260112
["ID","MTS","AMOUNT","RATE_DAILY","PERIOD"]
[401436537,1768215044503,-602.58106697,0.00017999,2]
[401436538,1768215044513,-300.0,0.00017999,2]
[401436539,1768215044523,-500.0,0.00017999,2]
[401436540,1768215044533,-500.0,0.00017999,2]
[401436541,1768215044543,-500.0,0.00017999,2]
[401436542,1768215044553,-500.0,0.00017999,2]
[401436543,1768215044563,-500.0,0.00017999,2]
[401436544,1768215044572,-500.0,0.00017999,2]
[401436545,1768215044582,-283.97422637,0.00017999,2]
[401436546,1768215044591,-500.0,0.00017999,2]
[401436547,1768215044600,-500.0,0.00017999,2]
[401436548,1768215044611,-500.0,0.00017999,2]
[401436549,1768215044621,-500.0,0.00017999,2]
[401436550,1768215044630,-500.0,0.00017999,2]
[401436551,1768215044640,-500.0,0.00017999,2]
[401436552,1768215044650,-500.0,0.00017999,2]
[401436553,1768215044660,-207.58974413,0.00017999,2]
[401436554,1768215044669,-500.0,0.00017999,2]
[401436555,1768215044679,-500.0,0.00017999,2]
[401436556,1768215044689,-500.0,0.00017999,2]
[401436557,1768215044698,-500.0,0.00017999,2]
[401436559,1768215044708,-500.0,0.00017999,2]
[401436561,1768215044717,-500.0,0.00017999,2]
[401436562,1768215044727,-500.0,0.00017999,2]
[401436563,1768215044736,-508.50378479,0.00017999,2]
[401436564,1768215044745,-300.0,0.00017999,2]
[401436565,1768215044754,-500.0,0.00017999,2]
[401436566,1768215044764,-404.20947906,0.00017999,2]
[401436567,1768215044773,-500.0,0.00017999,2]
[401436568,1768215044783,-500.0,0.00017999,2]
[401436569,1768215044792,-500.0,0.00017999,2]
[401436570,1768215044801,-500.0,0.00017999,2]
[401436571,1768215044810,-500.0,0.00017999,2]
[401436572,1768215044820,-500.0,0.00017999,2]
[401436573,1768215044829,-500.0,0.00017999,2]
[401436574,1768215044838,-500.0,0.00017999,2]
[401436575,1768215044847,-500.0,0.00017999,2]
[401436576,1768215044857,-369.87509882,0.00017999,2]
[401436577,1768215044866,-512.2174814,0.00017999,2]
[401436578,1768215045105,-300.0,0.00017999,2]
[401436579,1768215045115,-666.0,0.00017999,2]
[401436580,1768215045124,-507.848456,0.00017999,2]
[401436581,1768215045134,-502.8163204,0.00017999,2]
[401436582,1768215045143,-300.0,0.00017999,2]
[401436583,1768215045153,-156.71525666,0.00018,2]
[401436584,1768215045162,-154.38953807,0.00018,2]
[401436585,1768215045172,-263.65847092,0.00018,2]
[401436586,1768215045182,-265.81954746,0.00018,2]
[401436587,1768215045191,-155.07098724,0.00018,2]
[401436588,1768215045201,-150.0,0.00018,2]
[401436589,1768215045210,-152.37123583,0.00018,2]
[401436590,1768215045219,-155.70825827,0.00018,2]
[401436591,1768215045228,-151.45444701,0.00018,2]
[401436592,1768215045237,-152.34445976,0.00018,2]
[401436593,1768215045247,-154.70586823,0.00018,2]
[401436594,1768215045256,-248.59699216,0.00018,2]
[401436595,1768215045266,-952998.55957047,0.00018,2]
[401436596,1768215045284,-5947910.95621686,0.00018,2]
[401436597,1768215045296,-2888.17197887,0.00018,2]
[401436598,1768215045307,-467.53277933,0.00018,2]
[401436599,1768215045318,-3199.48917838,0.00018,2]
[401436600,1768215045329,-4000.0,0.00018,2]
[401436601,1768215045338,-424.42001937,0.00018,2]
[401436602,1768215045348,-423.81024343,0.00018,2]
[401436603,1768215045388,-1028.94574331,0.00018,2]
[401436604,1768215045399,-1563.61745328,0.00018,2]
[401436605,1768215045411,-1362.74,0.00018,2]
[401436606,1768215045422,-11126.85270579,0.00018,2]
[401436607,1768215045433,-31202.72374453,0.00018,2]
[401436608,1768215045485,-165218.40174696,0.00018,2]
[401436609,1768215045517,-9533.17266637,0.00018,2]
[401436610,1768215045529,-10025.64024776,0.00018,2]
[401436611,1768215045540,-24418.91535953,0.00018,2]
[401436612,1768215045552,-664.91687689,0.00018,2]
[401436613,1768215045563,-2521.45120591,0.00018,2]
[401436614,1768215045574,-345.78509847,0.00018,2]
[401436615,1768215045587,-564.0886184,0.00018,2]
[401436616,1768215045598,-1542.02172142,0.00018,2]
[401436617,1768215045612,-260.25,0.00018,2]
[401436619,1768215046203,-1359.71344481,0.00018,2]
[401436620,1768215046865,-1678114.64847696,0.00018,2]
[401436621,1768215046875,-2703656.14939107,0.00018,2]
[401436622,1768215046884,-150.0,0.00018,2]
[401436623,1768215046896,-200.0,0.00018,2]
[401436624,1768215046905,-213.0,0.00018,2]
[401436625,1768215046914,-265.0,0.00018,2]
[401436626,1768215046922,-250.0,0.00018,2]
[401436627,1768215046933,-194.425,0.00018,2]
[401436628,1768215046942,-211.999,0.00018,2]
[401436629,1768215046950,-226.708,0.00018,2]
[401436630,1768215046959,-157.467,0.00018,2]
[401436631,1768215046968,-250.0,0.00018,2]
[401436632,1768215046977,-190.963,0.00018,2]
[401436633,1768215046986,-163.847,0.00018,2]
[401436634,1768215046995,-212.004,0.00018,2]
[401436635,1768215047004,-250.0,0.00018,2]
[401436636,1768215047013,-229.743,0.00018,2]
[401436637,1768215047022,-169.0,0.00018,2]
[401436638,1768215047031,-768.26,0.00018,7]
[401436639,1768215047040,-500.0,0.00018,2]
[401436640,1768215047049,-500.0,0.00018,2]
[401436641,1768215047058,-500.0,0.00018,2]
[401436642,1768215047067,-500.0,0.00018,2]
[401436643,1768215047077,-500.0,0.00018,2]
[401436644,1768215047086,-500.0,0.00018,2]
[401436645,1768215047096,-500.0,0.00018,2]
[401436646,1768215047106,-500.0,0.00018,2]
[401436647,1768215047115,-500.0,0.00018,2]
[401436648,1768215047125,-500.0,0.00018,2]
[401436649,1768215047134,-500.0,0.00018,2]
[401436650,1768215047143,-500.0,0.00018,2]
[401436651,1768215047152,-500.0,0.00018,2]
[401436652,1768215047161,-500.0,0.00018,2]
[401436653,1768215047171,-500.0,0.00018,2]
[401436654,1768215047179,-500.0,0.00018,2]
[401436655,1768215047189,-500.0,0.00018,2]
[401436656,1768215047198,-500.0,0.00018,2]
[401436657,1768215047207,-500.0,0.00018,2]
[401436658,1768215047216,-500.0,0.00018,2]
[401436659,1768215047225,-494.5,0.00018,2]
[401436660,1768215047235,-1093026.37481773,0.00018,2]
[401436661,1768215047250,-727.40483639,0.00018,2]
[401436662,1768215047260,-19401.56307888,0.00018,2]
[401436663,1768215047496,-1.7e-07,0.00018,2]
[401436664,1768215047507,-7781468.4069702,0.00018,2]
[401436665,1768215047518,-463.67418489,0.00018,2]
[401436666,1768215047529,-9347.2832205,0.00018,2]
[401436667,1768215047544,-405.28705655,0.00018,2]
[401436668,1768215047575,-3336.62340853,0.00018,2]
[401436669,1768215047587,-273.47278806,0.00018,2]
[401436670,1768215047598,-415.89844435,0.00018,2]
[401436671,1768215047610,-1690.66002,0.00018,2]
[401436672,1768215047621,-918.085566,0.00018,2]
[401436673,1768215047671,-57912.89630906,0.00018,2]
[401436674,1768215047708,-535.85788251,0.00018,2]
[401436675,1768215047738,-481.57727047,0.00018,2]
[401436676,1768215048355,-4762.08472049,0.00012821,2]
[401436677,1768215048366,-637.41718911,0.00012821,2]
[401436678,1768215048377,-1796.97144954,0.00012821,2]
[401436679,1768215048405,-286.28539746,0.00012821,2]
[401436680,1768215048441,-2279.30101599,0.00012821,2]
[401436681,1768215048451,-2457.47318728,0.000159,2]
[401436682,1768215048460,-179.28,0.00017178,2]
[401436683,1768215048469,-2396.4397142,0.00018,2]
[401436684,1768215048480,-2000.0,0.00018,2]
[401436685,1768215048491,-7659.82426982,0.00018,2]
[401436686,1768215048509,-879.4170014,0.00018,2]
[401436687,1768215048520,-259.47078087,0.00018,2]
[401436689,1768215834232,5000.0,0.000223,120]
[401436696,1768216232151,-166.66,0.00012329,2]
[401436698,1768216232160,-166.66,0.00012562,2]
[401436700,1768216232169,-166.66,0.00012796,2]
[401436702,1768216232179,-432.80264644,0.000128,2]
[401436704,1768216232204,-1052.16948953,0.000128,2]
[401436705,1768216232215,-656.09435565,0.000128,2]
[401436706,1768216232263,-2165.97994075,0.000128,2]
[401436707,1768216232273,-388.16504384,0.00012819,2]
[401436708,1768216232284,-434.57723662,0.00012819,2]
[401436709,1768216232322,-259.85,0.00012819,2]
[401436710,1768216232334,-1039.00956503,0.00012819,2]
[401436711,1768216232387,-2030.34281249,0.00012819,2]
[401436712,1768216232403,-349.17285286,0.00012819,2]
[401436747,1768216238354,-3328.42719257,0.00012819,2]
[401436748,1768216238366,-2437.89737148,0.00012819,2]
[401436749,1768216238376,-500.0,0.00012819,2]
[401436750,1768216238386,-500.0,0.00012819,2]
[401436751,1768216238396,-454.31619309,0.00012819,2]
[401436752,1768216238407,-45.68380691,0.00012819,2]
[401436753,1768216238417,-500.0,0.00012819,2]
[401436754,1768216238427,-500.0,0.00012819,2]
[401436755,1768216238436,-113.72944105,0.00012819,2]
[401436756,1768216238449,-386.27055895,0.00012819,2]
[401436757,1768216238459,-500.0,0.00012819,2]
[401436758,1768216238469,-500.0,0.00012819,2]
[401436759,1768216238479,-500.0,0.00012819,2]
[401436760,1768216238488,-21.63503303,0.00012819,2]
[401436761,1768216238518,-478.36496697,0.00012819,2]
[401436762,1768216238528,-500.0,0.00012819,2]
[401436763,1768216238537,-500.0,0.00012819,2]
[401436764,1768216238546,-500.0,0.00012819,2]
[401436765,1768216238554,-380.8093583,0.00012819,2]
[401436766,1768216238563,-300.0,0.0001282,2]
[401436767,1768216238572,-1200.0,0.0001282,2]
[401436768,1768216238581,-255.0,0.0001282,2]
[401436769,1768216238590,-1000000.0,0.00012821,2]
[401436770,1768216238599,-1200.0,0.00012919,2]
[401436772,1768216238608,-250.0,0.00012919,2]
[401436774,1768216238618,-299.68191968,0.0001292,2]
[401436776,1768216238627,-1149.086,0.0001292,2]
[401436778,1768216238636,-156.821,0.0001292,2]
[401436780,1768216238645,-33596.3197,0.00012921,2]
[401436782,1768216238655,-166.66,0.0001303,2]
[401436784,1768216238664,-1263.1,0.00013113,2]
[401436786,1768216238673,-150.0,0.00013257,2]
[401436788,1768216238683,-33074.45,0.00013258,2]
[401436790,1768216238693,-166.66,0.00013263,2]
[401436792,1768216238703,-10267.44207485,0.00013384,2]
[401436794,1768216238712,-1500.0,0.00013414,2]
[401436796,1768216238722,-166.66,0.00013497,2]
[401436798,1768216238731,-500.0,0.00013698,2]
[401436836,1768216239071,-456.07319796,0.00013698,2]
[401436838,1768216239083,-226.90542716,0.00013699,2]
[401436840,1768216239092,-1879.18,0.00013703,2]
[401436842,1768216239102,-44199.70526654,0.0001374,2]
[401436844,1768216239112,-2711.799583,0.00013749,2]
[401436846,1768216239121,-24879.31187104,0.0001375,2]
[401436848,1768216239131,-24827.9708,0.0001375,2]
[401436850,1768216239142,-2500.0,0.0001375,2]
[401436853,1768216239152,-500.0,0.0001379,2]
[401436855,1768216239162,-1868.19608192,0.00013839,2]
[401436857,1768216239172,-200.0,0.00013841,2]
[401436859,1768216239182,-200.0,0.00013841,2]
[401436861,1768216239191,-500.0,0.00013841,2]
[401436863,1768216239201,-200.0,0.00013841,2]
[401436865,1768216239211,-500.0,0.00013849,2]
[401436867,1768216239219,-500.0,0.00013849,2]
[401436869,1768216239229,-500.0,0.00013849,2]
[401436871,1768216239242,-500.0,0.00013849,2]
[401436873,1768216239251,-546.60063579,0.00013849,2]
[401436875,1768216239260,-500.0,0.00013849,2]
[401436877,1768216239270,-500.0,0.00013849,2]
[401436879,1768216239280,-500.0,0.00013849,2]
[401436881,1768216239289,-500.0,0.00013849,2]
[401436883,1768216239298,-500.0,0.00013849,2]
[401436885,1768216239310,-500.0,0.00013849,2]
[401436887,1768216239319,-500.0,0.00013849,2]
[401436889,1768216239329,-500.0,0.00013849,2]
[401436891,1768216239339,-500.0,0.00013849,2]
[401436893,1768216239348,-500.0,0.00013849,2]
[401436895,1768216239357,-283.97422637,0.00013849,2]
[401436897,1768216239367,-500.0,0.00013849,2]
[401436899,1768216239376,-500.0,0.00013849,2]
[401436901,1768216239385,-500.0,0.00013849,2]
[401436903,1768216239394,-500.0,0.00013849,2]
[401436904,1768216239403,-500.0,0.00013849,2]
[401436905,1768216239413,-404.20947906,0.00013849,2]
[401436906,1768216239422,-507.848456,0.00013849,2]
[401436908,1768216239431,-512.2174814,0.00013849,2]
[401436910,1768216239440,-502.8163204,0.00013849,2]
[401436912,1768216239449,-338.25,0.00013849,2]
[401436914,1768216239459,-9999.99,0.00013849,2]
[401436916,1768216239468,-9999.99,0.00013849,2]
[401436918,1768216239477,-150.99,0.00013849,2]
[401436920,1768216239486,-999.99,0.00013849,2]
[401436921,1768216239495,-500.0,0.00013849,2]
[401436924,1768216239504,-602.58106697,0.00013849,2]
[401436926,1768216239514,-9999.99,0.00013849,2]
[401436928,1768216239523,-299.99,0.00013849,2]
[401436929,1768216239532,-150.99,0.00013849,2]
[401436931,1768216239541,-3123.17,0.00013849,2]
[401436933,1768216239550,-9999.99,0.00013849,2]
[401436935,1768216239561,-669.76,0.00013849,2]
[401436938,1768216239571,-509.50574001,0.00013849,2]
[401436940,1768216239583,-590.70903052,0.00013849,2]
[401436942,1768216239593,-500.0,0.00013849,2]
[401436944,1768216239602,-500.0,0.00013849,2]
[401436945,1768216239611,-500.0,0.00013849,2]
[401436946,1768216239620,-500.0,0.00013849,2]
[401436947,1768216239630,-500.0,0.00013849,2]
[401436948,1768216239640,-500.0,0.00013849,2]
[401436949,1768216239650,-500.0,0.00013849,2]
[401436950,1768216239660,-500.0,0.00013849,2]
[401436951,1768216239669,-506.26751507,0.00013849,2]
[401436952,1768216239679,-500.0,0.00013849,2]
[401436953,1768216239688,-341.67884985,0.00013849,2]
[401436954,1768216239697,-500.0,0.00013849,2]
[401436955,1768216239707,-208.19455333,0.00013911,2]
[401436956,1768216239716,-10267.44207485,0.00013948,2]
[401436957,1768216239726,-1680.0,0.00014102,2]
[401436958,1768216239736,-600.0,0.00014102,2]
[401436959,1768216239745,-300.0,0.00014102,2]
[401436960,1768216239754,-550.02138729,0.00014102,2]
[401436961,1768216239764,-669.76,0.00014123,2]
[401436962,1768216239773,-500.0,0.00014123,2]
[401436963,1768216239783,-1200.0,0.00014169,2]
[401436964,1768216239792,-2711.799583,0.0001421,2]
[401436965,1768216239802,-394.84930312,0.00014211,2]
[401436966,1768216239813,-195.0,0.00014211,2]
[401436967,1768216239822,-600.0,0.00014211,2]
[401436968,1768216239832,-600.0,0.00014211,2]
[401436969,1768216239842,-600.0,0.00014211,2]
[401436970,1768216239852,-600.0,0.00014211,2]
[401436971,1768216239862,-250.0,0.00014211,2]
[401436972,1768216239872,-255.0,0.00014371,2]
[401436973,1768216239882,-500.0,0.00014397,2]
[401436974,1768216239892,-669.76,0.00014397,2]
[401436975,1768216239902,-208.1945533,0.00014481,2]
[401436976,1768216239912,-500.0,0.00014671,2]
[401436977,1768216239921,-669.76,0.00014671,2]
[401436978,1768216239931,-2711.799583,0.00014671,2]
[401436979,1768216239940,-1263.1,0.00014752,2]
[401436980,1768216239950,-669.76,0.00014945,2]
[401436981,1768216239960,-10000.0,0.00015,2]
[401436982,1768216239969,-208.1945533,0.00015051,2]
[401436983,1768216239978,-2711.799583,0.00015133,2]
[401436984,1768216239988,-285.0,0.00015208,2]
[401436985,1768216239997,-669.76,0.00015219,2]
[401436986,1768216240008,-669.76,0.00015493,2]
[401436987,1768216240018,-2351.0,0.00015512,2]
[401436988,1768216240028,-195.0,0.00015577,2]
[401436989,1768216240038,-2711.799583,0.00015594,2]
[401436990,1768216240047,-208.1945533,0.00015621,2]
[401436991,1768216240056,-669.83526628,0.00015767,2]
[401436992,1768216240065,-2047.89432275,0.000159,2]
[401436993,1768216240075,-2047.89432274,0.000159,2]
[401436994,1768216240084,-2047.89432274,0.000159,2]
[401436995,1768216240093,-2047.89432274,0.000159,2]
[401436996,1768216240103,-2047.89432274,0.000159,2]
[401436997,1768216240113,-2047.89432274,0.000159,2]
[401436998,1768216240123,-12662.53,0.00015956,2]
[401436999,1768216240133,-2711.799583,0.00016055,2]
[401437000,1768216240142,-208.1945533,0.0001619,2]
[401437001,1768216240152,-150.0,0.000162,2]
[401437002,1768216240161,-150.0,0.000162,2]
[401437003,1768216240172,-150.0,0.000162,2]
[401437004,1768216240181,-150.13669543,0.000162,2]
[401437005,1768216240191,-150.00000001,0.000162,2]
[401437006,1768216240200,-150.0,0.000162,2]
[401437007,1768216240210,-150.0,0.000162,2]
[401437008,1768216240219,-150.0,0.000162,2]
[401437009,1768216240231,-150.0,0.000162,2]
[401437011,1768216240242,-150.0,0.000162,2]
[401437012,1768216240251,-150.0,0.000162,2]
[401437013,1768216240260,-150.0,0.000162,2]
[401437014,1768216240270,-150.0,0.000162,2]
[401437015,1768216240281,-150.0,0.000162,2]
[401437016,1768216240290,-194.13832329,0.000162,2]
[401437017,1768216240300,-150.0,0.000162,2]
[401437018,1768216240312,-150.0,0.000162,2]
[401437019,1768216240321,-150.0,0.000162,2]
[401437020,1768216240331,-150.0,0.00016227,2]
[401437021,1768216240340,-150.0,0.00016255,2]
[401437022,1768216240349,-150.0,0.00016282,2]
[401437023,1768216240359,-150.0,0.00016309,2]
[401437024,1768216240368,-150.0,0.00016336,2]
[401437025,1768216240378,-179.28,0.00016356,2]
[401437026,1768216240387,-150.0,0.00016364,2]
[401437027,1768216240397,-150.0,0.00016391,2]
[401437028,1768216240406,-1263.1,0.00016391,2]
[401437029,1768216240416,-150.0,0.00016418,2]
[401437030,1768216240425,-150.0,0.00016425,2]
[401437031,1768216240435,-150.0,0.00016425,2]
[401437032,1768216240444,-150.0,0.00016425,2]
[401437033,1768216240453,-500.0,0.00016438,2]
[401437034,1768216240463,-500.0,0.00016438,2]
[401437035,1768216240472,-500.0,0.00016438,2]
[401437036,1768216240482,-500.0,0.00016438,2]
[401437037,1768216240491,-500.0,0.00016438,2]
[401437038,1768216240501,-23759.06,0.00016438,2]
[401437039,1768216240510,-151.0,0.00016438,2]
[401437040,1768216240519,-150.0,0.00016445,2]
[401437041,1768216240528,-150.0,0.00016473,2]
[401437042,1768216240537,-664.55,0.00016486,2]
[401437043,1768216240547,-150.0,0.000165,2]
[401437044,1768216240556,-150.0,0.000165,2]
[401437045,1768216240565,-150.0,0.000165,2]
[401437046,1768216240574,-2711.799583,0.00016516,2]
[401437047,1768216240583,-150.0,0.00016527,2]
[401437048,1768216240592,-150.0,0.00016555,2]
[401437049,1768216240601,-150.0,0.0001656,2]
[401437050,1768216240611,-150.0,0.0001656,2]
[401437051,1768216240620,-209.63270184,0.0001658,2]
[401437052,1768216240629,-150.0,0.00016582,2]
[401437053,1768216240639,-150.0,0.00016609,2]
[401437054,1768216240648,-150.0,0.00016636,2]
[401437055,1768216240657,-150.0,0.0001665,2]
[401437056,1768216240667,-150.0,0.0001665,2]
[401437057,1768216240676,-150.0,0.0001665,2]
[401437058,1768216240685,-150.0,0.0001665,2]
[401437059,1768216240695,-150.0,0.00016664,2]
[401437060,1768216240705,-150.0,0.00016691,2]
[401437061,1768216240715,-150.0,0.00016718,2]
[401437062,1768216240725,-150.0,0.00016745,2]
[401437063,1768216240734,-208.1945533,0.0001676,2]
[401437064,1768216240743,-150.0,0.00016773,2]
[401437065,1768216240753,-150.0,0.000168,2]
[401437066,1768216240763,-150.0,0.000168,2]
[401437067,1768216240772,-150.0,0.000168,2]
[401437068,1768216240781,-150.0,0.000168,2]
[401437069,1768216240791,-150.0,0.000168,2]
[401437070,1768216240800,-166.66,0.00016821,2]
[401437071,1768216240810,-150.0,0.00016827,2]
[401437072,1768216240820,-150.0,0.00016855,2]
[401437073,1768216240829,-150.0,0.00016875,2]
[401437074,1768216240838,-150.0,0.00016875,2]
[401437075,1768216240848,-150.0,0.00016875,2]
[401437076,1768216240858,-150.0,0.00016882,2]
[401437077,1768216240867,-150.0,0.00016909,2]
[401437078,1768216240877,-158.73335703,0.00016912,2]
[401437079,1768216240887,-150.0,0.0001692,2]
[401437080,1768216240896,-150.0,0.0001692,2]
[401437081,1768216240906,-150.0,0.00016936,2]
[401437082,1768216240916,-1030.2,0.00016951,2]
[401437083,1768216240925,-150.0,0.00016964,2]
[401437084,1768216240934,-2711.799583,0.00016978,2]
[401437085,1768216240943,-150.0,0.00016991,2]
[401437086,1768216240953,-19299.0,0.00017,2]
[401437087,1768216240963,-150.0,0.00017018,2]
[401437088,1768216240972,-150.0,0.00017045,2]
[401437089,1768216240981,-1030.2,0.00017046,2]
[401437090,1768216240991,-3292.0,0.00017064,2]
[401437091,1768216241000,-250.0,0.0001707,2]
[401437092,1768216241010,-500.0,0.00017073,2]
[401437093,1768216241019,-510.77976475,0.00017073,2]
[401437094,1768216241028,-499.999999,0.00017073,2]
[401437095,1768216241038,-164.2110081,0.00017073,2]
[401437096,1768216241047,-500.0,0.00017073,2]
[401437097,1768216241057,-537.39654828,0.00017073,2]
[401437098,1768216241066,-500.0,0.00017073,2]
[401437099,1768216241076,-500.0,0.00017073,2]
[401437100,1768216241085,-500.0,0.00017073,2]
[401437101,1768216241095,-500.11872932,0.00017073,2]
[401437102,1768216241105,-500.0,0.00017073,2]
[401437103,1768216241114,-500.0,0.00017073,2]
[401437104,1768216241123,-500.0,0.00017073,2]
[401437105,1768216241132,-237.55266578,0.00017073,2]
[401437106,1768216241142,-500.0,0.00017073,2]
[401437107,1768216241152,-500.0,0.00017073,2]
[401437108,1768216241161,-500.0,0.00017073,2]
[401437109,1768216241170,-500.0,0.00017073,2]
[401437110,1768216241180,-500.0,0.00017073,2]
[401437111,1768216241189,-500.0,0.00017073,2]
[401437112,1768216241199,-500.0,0.00017073,2]
[401437113,1768216241208,-500.0,0.00017073,2]
[401437114,1768216241217,-500.0,0.00017073,2]
[401437115,1768216241227,-500.0,0.00017073,2]
[401437116,1768216241243,-500.57959935,0.00017073,2]
[401437117,1768216241252,-500.0,0.00017073,2]
[401437118,1768216241262,-500.65590003,0.00017073,2]
[401437119,1768216241272,-500.0,0.00017073,2]
[401437120,1768216241283,-150.0,0.00017073,2]
[401437121,1768216241292,-998.0,0.00017099,2]
[401437122,1768216241303,-359.57914319,0.00017099,2]
[401437123,1768216241312,-332.7592684,0.00017099,2]
[401437124,1768216241322,-150.0,0.000171,2]
[401437125,1768216241331,-150.0,0.000171,2]
[401437126,1768216241341,-150.0,0.000171,2]
[401437127,1768216241350,-150.0,0.000171,2]
[401437128,1768216241360,-150.0,0.000171,2]
[401437129,1768216241369,-150.0,0.000171,2]
[401437130,1768216241379,-150.0,0.000171,2]
[401437131,1768216241389,-150.0,0.00017127,2]
[401437132,1768216241399,-1030.2,0.00017142,2]
[401437133,1768216241408,-150.0,0.00017155,2]
[401437134,1768216241418,-150.0,0.00017182,2]
[401437135,1768216241428,-1198.0,0.000172,2]
[401437136,1768216241438,-150.0,0.00017209,2]
[401437137,1768216241447,-150.0,0.00017236,2]
[401437138,1768216241456,-1030.2,0.00017237,2]
[401437139,1768216241466,-150.0,0.00017264,2]
[401437140,1768216241475,-150.0,0.0001728,2]
[401437141,1768216241484,-150.0,0.0001728,2]
[401437142,1768216241493,-2791.84971627,0.0001728,2]
[401437143,1768216241503,-1899.44666686,0.0001728,2]
[401437144,1768216241512,-150.0,0.00017291,2]
[401437145,1768216241521,-150.0,0.00017318,2]
[401437146,1768216241530,-150.0,0.00017325,2]
[401437147,1768216241539,-150.0,0.00017325,2]
[401437148,1768216241548,-150.0,0.00017325,2]
[401437149,1768216241557,-208.1945533,0.0001733,2]
[401437150,1768216241566,-1030.2,0.00017332,2]
[401437151,1768216241575,-150.0,0.00017345,2]
[401437152,1768216241585,-150.0,0.00017373,2]
[401437153,1768216241594,-166.66,0.00017376,2]
[401437154,1768216241604,-6157.84376205,0.00017377,2]
[401437155,1768216241613,-150.0,0.000174,2]
[401437156,1768216241622,-150.0,0.000174,2]
[401437157,1768216241631,-150.0,0.000174,2]
[401437158,1768216241641,-150.0,0.000174,2]
[401437159,1768216241650,-150.0,0.000174,2]
[401437160,1768216241660,-150.0,0.00017427,2]
[401437161,1768216241670,-1030.2,0.00017428,2]
[401437162,1768216241679,-2711.799583,0.00017439,2]
[401437163,1768216241689,-150.0,0.00017455,2]
[401437164,1768216241699,-2050.0,0.00017474,2]
[401437165,1768216241709,-500.0,0.00017478,2]
[401437166,1768216241718,-500.0,0.00017478,2]
[401437167,1768216241728,-500.0,0.00017478,2]
[401437168,1768216241738,-500.0,0.00017478,2]
[401437169,1768216241747,-150.0,0.00017482,2]
[401437170,1768216241757,-2000.0,0.000175,2]
[401437171,1768216241766,-150.0,0.00017509,2]
[401437172,1768216241775,-1030.2,0.00017523,2]
[401437173,1768216241785,-150.0,0.00017536,2]
[401437174,1768216241795,-150.0,0.0001755,2]
[401437175,1768216241804,-150.0,0.0001755,2]
[401437176,1768216241814,-150.0,0.0001755,2]
[401437177,1768216241824,-150.0,0.0001755,2]
[401437178,1768216241833,-150.0,0.00017564,2]
[401437179,1768216241843,-315.64971577,0.00017569,2]
[401437180,1768216241852,-150.0,0.00017591,2]
[401437181,1768216241862,-2050.0,0.00017596,2]
[401437182,1768216241871,-1000.0,0.000176,2]
[401437183,1768216241881,-150.0,0.00017618,2]
[401437184,1768216241890,-1030.2,0.00017619,2]
[401437185,1768216241899,-1000.0,0.00017621,2]
[401437186,1768216241908,-500.70457439,0.00017621,2]
[401437187,1768216241917,-500.51842778,0.00017621,2]
[401437188,1768216241927,-1000.0,0.00017621,2]
[401437189,1768216241937,-500.0,0.00017621,2]